Cogmind - Beta 14 @@@ ROGUE MODE // 2024.09.19 @ 03:41:15 Player: Duduxx Result: Destroyed by G-47 Trooper with Particle Gun Performance ------------- Evolutions (1) 500 Regions Visited (4) 800 Robots Destroyed (32) 160 Value Destroyed (806) 806 Prototype IDs (1) 20 Alien Tech Used (0) 0 Bonus (8) 8 TOTAL SCORE: 2294 Bonus ------- High Alert Combat Kills 8 Cogmind --------- Core Integrity 0/400 Matter 298/300 Energy 250/250 System Corruption 2% Temperature Cool (9) Movement Walking (120) Location -9/Mines Parts ------- > --- POWER (1) -------- Ion Engine > --- PROPULSION (2) --- Aluminum Leg Aluminum Leg > --- UTILITY (4) ------ Small Storage Unit Improved Targeting Computer > --- WEAPON (2) ------- Light Assault Rifle Light Assault Rifle > --- INVENTORY (8) ---- Light Ion Engine Grenade Launcher Maul Peak State ------------ > --- POWER ------------ Light Ion Engine > --- PROPULSION ------- Improved Hover Unit Improved Hover Unit > --- UTILITY ---------- Improved Heat Sink Terrain Scanner Improved Targeting Computer Shield Generator > --- WEAPON ----------- Beam Rifle Beam Rifle > --- INVENTORY -------- Improved Hover Unit Small Storage Unit Grenade Launcher Mini Grenade Launcher [Rating: 17] Favorites ----------- Power Light Ion Engine Engine Light Ion Engine Propulsion Aluminum Leg Treads Light Treads Leg Aluminum Leg Wheel Wheel Hover Unit Improved Hover Unit Flight Unit Flight Unit Utility Small Storage Unit Device Improved Heat Sink Storage Small Storage Unit Processor Improved Targeting Computer Hackware Hacking Suite Protection Light Armor Plating Weapon Beam Rifle Energy Gun Beam Rifle Ballistic Gun Light Assault Rifle Launcher Mini Grenade Launcher Special Weapon Mining Laser Impact Weapon Maul Build | -11 -10 -10 -9 -9 ------- Run | Yrd Mat Min Mat Min Slots Evolved 2 | . . . 2 . Power . | . . . . . Propulsion . | . . . . . Utility 2 | . . . 2 . Weapon . | . . . . . Parts Attached 55 | 5 9 8 24 9 Power 7 | 1 1 1 3 1 Engine 7 | 1 1 1 3 1 Core . | . . . . . Reactor . | . . . . . Propulsion 18 | 2 2 2 9 3 Treads 2 | 2 . . . . Leg 7 | . 2 . 3 2 Wheel 5 | . . 2 3 . Hover 3 | . . . 3 . Flight 1 | . . . . 1 Utility 11 | 1 3 3 4 . Device 5 | . . 3 2 . Storage 3 | 1 1 . 1 . Processor 1 | . . . 1 . Hackware 1 | . 1 . . . Protection 1 | . 1 . . . Artifact . | . . . . . Weapon 19 | 1 3 2 8 5 Energy Gun 11 | . 2 1 6 2 Energy Cannon . | . . . . . Ballistic Gun 4 | 1 . . 1 2 Ballistic Cannon . | . . . . . Launcher 2 | . 1 . 1 . Special Weapon 1 | . . 1 . . Impact Weapon 1 | . . . . 1 Slashing Weapon . | . . . . . Piercing Weapon . | . . . . . Special Melee Weapon . | . . . . . Unidentified Prototypes 1 | . . . 1 . Corrupted Parts 2 | . . . . 2 System Corruption 2 | . . . . 2 Parts Lost 28 | . 3 6 11 8 Power 5 | . 1 1 2 1 Propulsion 9 | . 1 2 3 3 Utility 7 | . 1 2 3 1 Weapon 7 | . . 1 3 3 Highest Loss Streak 7 | . 2 5 6 7 To Critical Strikes . | . . . . . Average Slot Usage (%) 74 | . 80 78 75 63 Engine 10 | . 14 8 9 8 Treads 5 | . 23 . . . Leg 9 | . 3 15 8 13 Wheel 1 | . . 3 1 . Hover 2 | . . . 8 . Device 8 | . . 10 18 3 Storage 7 | . 10 5 3 11 Processor 4 | . . . 7 11 Hackware 3 | . 8 7 . . Energy Gun 11 | . 2 21 15 3 Ballistic Gun 4 | . 12 . . 6 Special Weapon 1 | . . 5 . . Peak Build Rating 17 | 5 12 13 17 13 Average Rating 9 | 3 7 9 12 8 On Entrance 7 | . 5 12 11 11 Naked Turns . | . . . . . Heaviest Build 18 | 9 14 14 18 16 Greatest Support 40 | 40 40 20 20 20 Greatest Overweight (x) 4 | . . 1 3 4 Average Overweight (x) . | . . . . . Largest Inventory Capacity 8 | 8 8 8 8 8 Average Capacity 6 | 7 7 6 5 8 Most Carried 5 | . 5 5 5 5 Average Carried 3 | . 1 4 4 2 Final Capacity 8 | 8 8 5 8 8 Final Carried 5 | . 5 4 5 3 Class Distribution -------------------- 79% | Mutant 20% | Scavenger-Mutant Dominant Class ---------------- Mutant | -10/Materials Scavenger-Mutant | -10/Mines Mutant | -9/Materials Mutant | -9/Mines Resources | -11 -10 -10 -9 -9 ----------- Run | Yrd Mat Min Mat Min Matter Collected 834 | 176 118 192 225 123 Remotely . | . . . . . Salvage Created 856 | . 186 54 437 179 Parts 56 | . 12 6 30 8 Haulers Intercepted 1 | . . . 1 . Recyclers Shooed 1 | . . 1 . . Parts Field Recycled . | . . . . . Retrieved Matter . | . . . . . Parts Self-Destructed . | . . . . . Prevented . | . . . . . Kills | -11 -10 -10 -9 -9 ------- Run | Yrd Mat Min Mat Min Combat Hostiles Destroyed 29 | . 5 4 13 7 Melee 2 | . . . . 2 Guns 19 | . 1 4 10 4 AOE 7 | . 4 . 3 . Classes Destroyed 9 | . 2 2 4 1 Worker 1 | . . . 1 . Builder 1 | . . . 1 . Hauler 1 | . . . 1 . Operator 1 | . 1 . . . Swarmer 10 | . . 3 3 4 Grunt 16 | . 5 . 9 2 Duelist 1 | . . . . 1 Sentry 1 | . . . 1 . Assembled 1 | . . 1 . . Best Kill Streak 6 | . 4 3 6 4 Combat Bots Only 5 | . 4 3 5 4 Max Kills in Single Turn 2 | . 2 1 2 1 Gunslinging . | . . . . . Exploded 2 | . 2 . 1 . Melee 1 | . . . . 1 Uniques/NPCs Destroyed . | . . . . . Combat | -11 -10 -10 -9 -9 -------- Run | Yrd Mat Min Mat Min Hostile Shots Fired 221 | . 47 24 102 48 Missed 49 | . 7 4 27 11 Damage Taken 2541 | . 620 565 801 555 Core 641 | . 103 136 165 237 Absorbed by Shields 88 | . . . 88 . Core Remaining (%) 52 | 100 . 4 . . Volleys Fired 102 | . 31 25 32 14 Largest 2 | . 2 2 2 2 Hottest 112 | . 50 112 112 112 Shots Fired 127 | . 37 33 40 17 Gun 102 | . 31 24 30 17 Cannon . | . . . . . Launcher 16 | . 6 . 10 . Special 9 | . . 9 . . Kinetic 33 | . 31 . . 2 Thermal 55 | . . 33 15 7 Explosive 16 | . 6 . 10 . Electromagnetic 23 | . . . 15 8 Robot Hit Streak 10 | . 9 6 10 10 Robot Miss Streak 6 | . 4 6 3 3 Penetration Max . | . . . . . Secondary Targets 1 | . . 1 . . Max Gunslinging Chain 1 | . . 1 . . Shots Hit Robots 88 | . 28 9 30 21 Core Hits 52 | . 14 5 25 8 Critical Kills . | . . . . . Critical Parts Destroyed 1 | . . . . 1 Critical Strikes 3 | . . . 2 1 Burn 2 | . . . 2 . Smash 1 | . . . . 1 Melee Attacks 12 | . . . . 12 Impact 12 | . . . . 12 Slashing . | . . . . . Piercing . | . . . . . Sneak Attacks . | . . . . . Combat Hostiles . | . . . . . Follow-up Attacks . | . . . . . Damage Inflicted 1771 | . 413 131 801 426 Guns 862 | . 176 131 372 183 Cannons . | . . . . . Explosions 666 | . 237 . 429 . Melee 243 | . . . . 243 Ramming . | . . . . . Kinetic 191 | . 176 . . 15 Thermal 486 | . . 131 252 103 Explosive 560 | . 237 . 323 . Electromagnetic 291 | . . . 226 65 Impact 243 | . . . . 243 Slashing . | . . . . . Piercing . | . . . . . Highest Corruption 14 | . . 14 . 2 Average Corruption 8 | . . 13 . 1 Corruption Purged . | . . . . . Corruption Blocked . | . . . . . Effects 8 | . . 6 . 2 Message Errors 3 | . . 1 . 2 Matter Fused 3 | . . 3 . . Energy Discharges 1 | . . 1 . . Misdirections 1 | . . 1 . . Overload Shots . | . . . . . Overflow Damage 95 | . . . 47 48 Projectiles . | . . . . . Explosions 47 | . . . 47 . Melee 48 | . . . . 48 Knockbacks 1 | . . . . 1 Impact 1 | . . . . 1 Kinetic . | . . . . . Secondary . | . . . . . Self-Inflicted Damage 133 | . 41 . 92 . Shots 7 | . 4 . 3 . Rammed . | . . . . . Targets Rammed . | . . . . . Kicked . | . . . . . Crushed . | . . . . . Highest Temperature 444 | . 128 306 444 81 Average Temperature 87 | . 45 128 104 38 Received Heat Transfer 843 | . 378 . 327 138 Effects 1 | . . . 1 . Shutdowns 1 | . . . 1 . Siege Activations . | . . . . . Robots Corrupted 1 | . . . . 1 Combat Hostiles 1 | . . . . 1 Parts Fried 3 | . . . 2 1 Impact Corruptions 2 | . . . . 2 Robots Melted . | . . . . . Combat Hostiles . | . . . . . Parts Melted 2 | . . . 2 . Heat Transferred 1260 | . . 333 668 259 Parts Sabotaged . | . . . . . Parts Stolen . | . . . . . Parts Stripped . | . . . . . Power Chain Reactions 1 | . . . 1 . Alert | -11 -10 -10 -9 -9 ------- Run | Yrd Mat Min Mat Min Peak Influence 420 | . 159 133 420 258 Initial 163 | . . 61 35 163 Average 154 | . 70 110 219 239 Maximum Alert Level 2 | . . . 2 1 Low Security (%) 64 | 100 100 100 45 7 Level 1 30 | . . . 40 92 Level 2 4 | . . . 14 . Level 3 . | . . . . . Level 4 . | . . . . . Level 5 . | . . . . . High Security . | . . . . . Max Security . | . . . . . Squads Dispatched 2 | . 1 . 1 . Investigation . | . . . . . Extermination . | . . . . . Reinforcement 2 | . 1 . 1 . Assault . | . . . . . Garrison . | . . . . . Intercept . | . . . . . Searches Triggered . | . . . . . Construction Impeded . | . . . . . Haulers Reinforced . | . . . . . Active Scanning Responses . | . . . . . Cargo Convoy Interrupts . | . . . . . Stealth | -11 -10 -10 -9 -9 --------- Run | Yrd Mat Min Mat Min Distress Signals 5 | . . 2 3 . Communications Jammed . | . . . . . Distress Signals . | . . . . . Times Spotted 39 | . 7 3 19 10 Peak Tracking Total 10 | . 5 2 10 4 Tactical Retreats 4 | . 1 . 2 1 Traps | -11 -10 -10 -9 -9 ------- Run | Yrd Mat Min Mat Min Traps Triggered . | . . . . . Indirectly . | . . . . . Trap Hack Attempts . | . . . . . Triggered . | . . . . . Disarmed . | . . . . . Reprogrammed . | . . . . . Reused . | . . . . . Traps Extracted . | . . . . . Installed . | . . . . . Triggered . | . . . . . Machines | -11 -10 -10 -9 -9 ---------- Run | Yrd Mat Min Mat Min Machines Disabled 2 | . . . 2 . Max in Single Turn 1 | . . . 1 . Machines Repaired . | . . . . . Machines Dismantled . | . . . . . Machines Sabotaged . | . . . . . Overloaded Fab Kills . | . . . . . Hacking | -11 -10 -10 -9 -9 --------- Run | Yrd Mat Min Mat Min Machines Accessed 3 | . 2 . 1 . Terminals 3 | . 2 . 1 . Fabricators . | . . . . . Repair Stations . | . . . . . Recycling Units . | . . . . . Scanalyzers . | . . . . . Garrison Access . | . . . . . Total Hacks 9 | . 4 . 5 . Successful 1 | . 1 . . . Failed 8 | . 3 . 5 . Catastrophic 2 | . 1 . 1 . Database Lockouts . | . . . . . Manual 9 | . 4 . 5 . Terminals 9 | . 4 . 5 . Fabricators . | . . . . . Repair Stations . | . . . . . Recycling Units . | . . . . . Scanalyzers . | . . . . . Garrison Access . | . . . . . Terminal Hacks 1 | . 1 . . . Hauler Manifests 1 | . 1 . . . Fabricator Hacks . | . . . . . Repair Station Hacks . | . . . . . Recycling Unit Hacks . | . . . . . Scanalyzer . | . . . . . Garrison Access Hacks . | . . . . . Unauthorized Hacks . | . . . . . Terminals . | . . . . . Fabricators . | . . . . . Repair Stations . | . . . . . Recycling Units . | . . . . . Scanalyzers . | . . . . . Garrison Access . | . . . . . Data Cores Recovered . | . . . . . Used . | . . . . . Hacking Detections 3 | . 2 . 1 . Full Trace Events 1 | . 1 . . . Feedback Events . | . . . . . Feedback Blocked . | . . . . . Robot Schematics Acquired . | . . . . . Robots Built . | . . . . . Authchips . | . . . . . Time . | . . . . . Total Robot Build Rating . | . . . . . Part Schematics Acquired . | . . . . . Parts Built . | . . . . . Authchips . | . . . . . Time . | . . . . . Total Part Build Rating . | . . . . . Parts Repaired . | . . . . . Time . | . . . . . Parts Recycled . | . . . . . Recycled Matter . | . . . . . Retrieved Matter . | . . . . . Retrieved Components . | . . . . . Parts Scanalyzed . | . . . . . Part Schematics Acquired . | . . . . . Parts Damaged . | . . . . . Bothacking | -11 -10 -10 -9 -9 ------------ Run | Yrd Mat Min Mat Min Used RIF Installer . | . . . . . Robots Hacked . | . . . . . Non-combat . | . . . . . Combat . | . . . . . Robot Hacks Applied . | . . . . . Relay Couplers Released . | . . . . . Fabnet Peak Effective % . | . . . . . Robots Rewired . | . . . . . Allies Hacked . | . . . . . Hacks Repelled . | . . . . . Allies | -11 -10 -10 -9 -9 -------- Run | Yrd Mat Min Mat Min Total Allies . | . . . . . Largest Group . | . . . . . Highest-Rated Group . | . . . . . Highest-Rated Ally . | . . . . . Total Orders . | . . . . . Ally Attacks . | . . . . . Total Damage . | . . . . . Kills . | . . . . . Allies Corrupted . | . . . . . Allies Melted . | . . . . . Intel | -11 -10 -10 -9 -9 ------- Run | Yrd Mat Min Mat Min Robot Analysis Total . | . . . . . Derelict Logs Recovered 1 | . . 1 . . Drone Launches . | . . . . . Drone Recoveries . | . . . . . Exploration | -11 -10 -10 -9 -9 ------------- Run | Yrd Mat Min Mat Min Turns Passed 1114 | 61 267 213 364 209 Spaces Moved 613 | 37 122 108 253 93 Core 31 | 4 . 24 1 2 Treads 129 | 33 96 . . . Legs 267 | . 26 56 94 91 Wheels 43 | . . 28 15 . Hover 143 | . . . 143 . Flight . | . . . . . Fastest Speed 50 | 50 120 80 56 120 Average Speed 114 | 148 151 105 87 135 Slowest Speed 250 | 160 160 120 200 250 Overloaded Moves . | . . . . . Propulsion Burnouts . | . . . . . Robots Hopped . | . . . . . Cave-ins Triggered 2 | . . 2 . . Exploration Rate (%) 18 | 4 26 18 28 14 Regions Visited 4 Branch Regions 2 Pre-discovered Areas . | . . . . . Known Exits Taken . | . . . . . Unknown Exits Taken 4 | 1 1 1 1 . Scrap Searched . | . . . . . Spaces Dug 22 | . . 9 13 . Terrain Destroyed 78 | . 19 9 50 . Melee . | . . . . . Projectile 9 | . . 9 . . AOE 69 | . 19 . 50 . Terrain Rammed . | . . . . . Walls Destroyed . | . . . . . Machines Disabled . | . . . . . Actions | -11 -10 -10 -9 -9 --------- Run | Yrd Mat Min Mat Min Total 856 | 41 174 153 353 135 Wait 47 | . . 12 30 5 Move 609 | 36 121 107 252 93 Hop . | . . . . . Pick Up 11 | . 7 1 2 1 Fast Attach 33 | 5 5 4 14 5 Attach 17 | . 4 2 7 4 Detach 12 | . 4 . 7 1 Swap 5 | . . 2 3 . Drop 8 | . 2 . 6 . Fire 102 | . 31 25 32 14 Melee 12 | . . . . 12 Ram . | . . . . . Kick . | . . . . . Crush . | . . . . . Escape Stasis . | . . . . . Rewire . | . . . . . Trap . | . . . . . Miscellaneous . | . . . . . Route ------- -11/Scrapyard -10/Materials -10/Mines -9/Materials -9/Mines History --------- Turn | Location | Event 2 | -11/Scrapyard | Discovered new exit (range 16) 62 | -11/Scrapyard | Entered Materials 193 | -10/Materials | Discovered new exit (range 15) 329 | -10/Materials | Entered Mines 345 | -10/Mines | Core integrity fell below 50% 353 | -10/Mines | Learned Materials interactive machine intel 396 | -10/Mines | Assembled infested the area 441 | -10/Mines | Crushed by falling debris 441 | -10/Mines | System corruption reached 10% 456 | -10/Mines | Crushed by falling debris 473 | -10/Mines | Discovered new exit (range 8) 486 | -10/Mines | Core integrity fell below 20% 487 | -10/Mines | Lost 5 parts (1p2n2u) 542 | -10/Mines | Entered Materials 542 | -9/Materials | Evolved 2 slots: Utility x2 543 | -9/Materials | Loaded intel: 18 interactive machine locations 700 | -9/Materials | Lost 4 parts (1p2n1u) 798 | -9/Materials | Lost 6 parts (1p1n2u2w) 823 | -9/Materials | Build established: Mutant 886 | -9/Materials | Discovered new exit (range 15) 906 | -9/Materials | Entered Mines 930 | -9/Mines | Met a Derelict bent on vengeance 955 | -9/Mines | Core integrity fell below 50% 994 | -9/Mines | Core integrity fell below 20% 1003 | -9/Mines | Lost 7 parts (1p2n1u3w) 1115 | -9/Mines | Destroyed by G-47 Trooper with Particle Gun Last Messages --------------- 00975_ Katana fried. 00998_ G-34 Mercenary destroyed. 01014_ Acquired Aluminum Leg. 01015_ Acquired 25 matter. 01019_ Acquired Aluminum Leg. 01020_ Acquired 10 matter. 01048_ Acquired Corrupted Lgt. Assault Rifle. 01048_ Integrated Corrupted Lgt. Assault Rifle (+1). 01048_ Complication: Energy sink damages Corrupted Lgt. Assault Rifle (-22). 01051_ Acquired 10 matter. 01054_ H V|GZXV|#QJ 01057_ Acquired Corrupted Lgt. Assault Rifle. 01057_ Integrated Corrupted Lgt. Assault Rifle (+1). 01061_ Acquired Lgt. Ion Engine. 01066_ Acquired 10 matter. 01072_ QO7J 416LKKDCTFPOA78MV 01077_ K-01 Serf collects debris. Map ----- +----------------------------------------------------+ | | | | | | | | | | | | | | | | | ??????????????????????????????????????? | | ??????????????????????????????????????? | | ??????????????????????????????????????? | | ????????????????????? ??????????????? | | ????????????????????? ??????????????? | | ????????????????????? ??????????????? | | ????????????????????? ??????????????? | | ?????????????????????# ??????????????? | | ???#?????????????????# ??????????????? | | ??## ###?????????????# #?????????????? | | ??? ????????????# ##???????? #?? | | ????? ???????????# #??????? #??? | | ??????? ?????????## ##???? #???? | | ????????? ######??# ##?? ##??? | | ??????????? #??# ## ???? | | ????????????? #??# """ ???? | | ??????????????# #???# """ ???? | | ??????????????# #????# @ """ ???? | | ??????????????# #######g#### #??? | | ??????????????# #?#g#?????????#??? | | ??????????????# %#?# #????????????? | | ??????????????###### #?# #????????????? | | ???????????????????#%### #######??????? | | ???????????????????# #????? | | ???????????????????# ###########??????? | | ?????????????????### #########????????? | | ?????????????????# #????????? | | ?????????????????# "%" #????????? | | ?????????????????# """ """ #????????? | | ?????????????????# """ """ #????????? | | ?????????????????# """%""" #????????? | | ?????????????????# = #????????? | | ?????????????????# * """ #????????? | | ?????????????????# """ #????????? | | ?????????????????# """ #????????? | | ?????????????????# #????????? | | ?????????????????#############????????? | | ??????????????????????????????????????? | | ??????????????????????????????????????? | | ??????????????????????????????????????? | | ??????????????????????????????????????? | | ??????????????????????????????????????? | +----------------------------------------------------+ Best States ------------- Heat Dissipation 42 Energy Generation 12 Energy Capacity 265 Matter Stores 300 Matter Capacity 300 Sight Range 16 Terrain Scan Range 14 Terrain Scan Density 10 Armor Coverage 150 Evasion (%) 55 Targeting Accuracy 6 Recoil Reduction 2 Offensive Hacking 10 Item Schematics ----------------- None Robot Schematics ------------------ None Fabricated ------------ Nothing Alien Tech Used ----------------- None Achievements -------------- None Challenges ------------ None Game ------ Seed TeslaDroneCorpse Manual? 0 Play Time 00:15:56 Cumulative 55.3 hours Start 2024.09.19 @ 03:26:11 End 2024.09.19 @ 03:41:15 Sessions 1 Manual Loads 0 Difficulty Rogue Special Mode None Game No. 122 Rogue 122 Adventurer 0 Explorer 0 Win Type - Total 0 Types 0/0/0/0/0/0/0/0/0 Lore% 17 Gallery% 34 Achievement% 27 Wizard Run 0 Options --------- Layout 1 ASCII 0 Keyboard 1 Movement Arrows Keybinds 0 Fullscreen 1 Font 24/Smallcaps Map View 50x35 Zoom Use 0% Tactical HUD 1 Map Filters NONE Filters NONE Steam 1 RUN: 34ba73df-7c4d-4479-b68a-3ed2e40a566c